[Event "Live Chess"]
[Site "Chess.com"]
[Date "2023.05.21"]
[Round "-"]
[White "profpirate4"]
[Black "1PRK1"]
[Result "1-0"]
[WhiteElo "1107"]
[BlackElo "1364"]
[TimeControl "300"]
[EndTime "22:10:00 PDT"]
[Termination "profpirate4 won by resignation"]

1. d4 {[%clk 0:04:57.6]} 1... Nf6 {[%clk 0:04:57.9]} 2. c4 {[%clk 0:04:56.6]}
2... d6 {[%clk 0:04:54.7]} 3. Nc3 {[%clk 0:04:55.9]} 3... g6 {[%clk 0:04:53.5]}
4. f3 {[%clk 0:04:54.3]} 4... Bg7 {[%clk 0:04:52.8]} 5. e4 {[%clk 0:04:53.5]}
5... O-O {[%clk 0:04:52]} 6. Be3 {[%clk 0:04:50.3]} 6... Nbd7 {[%clk 0:04:51.4]}
7. Be2 {[%clk 0:04:47.1]} 7... e5 {[%clk 0:04:50.4]} 8. d5 {[%clk 0:04:45.6]}
8... Ne8 {[%clk 0:04:45.1]} 9. Qd2 {[%clk 0:04:43.5]} 9... Nc5 {[%clk
0:04:36.4]} 10. h4 {[%clk 0:04:38.5]} 10... f5 {[%clk 0:04:34.1]} 11. h5 {[%clk
0:04:30.5]} 11... f4 {[%clk 0:04:24.1]} 12. Bxc5 {[%clk 0:04:21.6]} 12... dxc5
{[%clk 0:04:23.1]} 13. hxg6 {[%clk 0:04:07.7]} 13... hxg6 {[%clk 0:04:19.7]} 14.
O-O-O {[%clk 0:03:56]} 14... Nf6 {[%clk 0:04:13.4]} 15. Rh3 {[%clk 0:03:51.6]}
15... Kf7 {[%clk 0:04:08.9]} 16. Bd3 {[%clk 0:03:42.9]} 16... Nh5 {[%clk
0:04:06.5]} 17. Nge2 {[%clk 0:03:37.6]} 17... Bxh3 {[%clk 0:04:04]} 18. gxh3
{[%clk 0:03:36]} 18... Qd7 {[%clk 0:03:59.2]} 19. Rg1 {[%clk 0:03:32.8]} 19...
Qxh3 {[%clk 0:03:53.2]} 20. Kc2 {[%clk 0:03:27.5]} 20... Qxf3 {[%clk 0:03:48.6]}
21. Nc1 {[%clk 0:03:15.2]} 21... Qe3 {[%clk 0:03:06.4]} 22. Qg2 {[%clk
0:03:08.6]} 22... Ng3 {[%clk 0:03:02.6]} 23. N1e2 {[%clk 0:02:58.1]} 23... Rad8
{[%clk 0:02:42.3]} 24. Rf1 {[%clk 0:02:49.3]} 24... Nxe2 {[%clk 0:02:38.8]} 25.
Nxe2 {[%clk 0:02:43.9]} 25... f3 {[%clk 0:02:01.8]} 26. Rxf3+ {[%clk 0:02:36.6]}
26... Qf4 {[%clk 0:02:00.2]} 27. Rxf4+ {[%clk 0:02:34.7]} 27... exf4 {[%clk
0:01:59.8]} 28. Nxf4 {[%clk 0:02:28.9]} 28... Rd6 {[%clk 0:01:58.8]} 29. Qe2
{[%clk 0:02:14.3]} 29... Rb6 {[%clk 0:01:56.5]} 30. e5 {[%clk 0:02:12.1]} 30...
Re8 {[%clk 0:01:52.3]} 31. e6+ {[%clk 0:02:04.4]} 31... Kg8 {[%clk 0:01:48.9]}
32. Qg4 {[%clk 0:01:36.7]} 32... Rxb2+ {[%clk 0:01:46.5]} 33. Kd1 {[%clk
0:01:30.7]} 33... Rxa2 {[%clk 0:01:34.9]} 34. Qxg6 {[%clk 0:01:27.6]} 34... Ra1+
{[%clk 0:01:29.6]} 35. Ke2 {[%clk 0:01:26.5]} 35... Ra2+ {[%clk 0:01:25.8]} 36.
Kf3 {[%clk 0:01:25]} 36... Ra3 {[%clk 0:01:23.2]} 37. Qxe8+ {[%clk 0:01:09]} 1-0

[Event "Live Chess"]
[Site "Chess.com"]
[Date "2023.05.21"]
[Round "-"]
[White "chessfiction"]
[Black "Rusty_Bridges"]
[Result "1-0"]
[WhiteElo "2353"]
[BlackElo "1482"]
[TimeControl "300"]
[EndTime "22:10:21 PDT"]
[Termination "chessfiction won by resignation"]

1. e4 {[%clk 0:04:58.8]} 1... d6 {[%clk 0:04:57.9]} 2. d4 {[%clk 0:04:57.3]}
2... Nf6 {[%clk 0:04:56.5]} 3. Nc3 {[%clk 0:04:56.7]} 3... Nbd7 {[%clk
0:04:54.8]} 4. f4 {[%clk 0:04:56.3]} 4... e5 {[%clk 0:04:50.9]} 5. Nf3 {[%clk
0:04:56.2]} 5... exd4 {[%clk 0:04:49.2]} 6. Nxd4 {[%clk 0:04:54.7]} 6... Be7
{[%clk 0:04:44.7]} 7. Bd3 {[%clk 0:04:53.8]} 7... O-O {[%clk 0:04:43.3]} 8. O-O
{[%clk 0:04:52.8]} 8... c5 {[%clk 0:04:41.8]} 9. Nf5 {[%clk 0:04:51.6]} 9... Nb6
{[%clk 0:04:35.5]} 10. Nxe7+ {[%clk 0:04:46.7]} 10... Qxe7 {[%clk 0:04:33.6]}
11. Qf3 {[%clk 0:04:43.5]} 11... Bg4 {[%clk 0:04:27.9]} 12. Qg3 {[%clk
0:04:40.8]} 12... g6 {[%clk 0:04:17.8]} 13. e5 {[%clk 0:04:33.1]} 13... dxe5
{[%clk 0:04:15.6]} 14. fxe5 {[%clk 0:04:33]} 14... Qxe5 {[%clk 0:04:09.1]} 15.
Qxe5 {[%clk 0:04:31]} 1-0

[Event "Live Chess"]
[Site "Chess.com"]
[Date "2023.05.21"]
[Round "-"]
[White "Tushinskiy"]
[Black "Doge_Dandolo"]
[Result "1-0"]
[WhiteElo "2214"]
[BlackElo "1898"]
[TimeControl "300"]
[EndTime "22:11:00 PDT"]
[Termination "Tushinskiy won by resignation"]

1. d4 {[%clk 0:04:55.6]} 1... d5 {[%clk 0:04:58.4]} 2. c3 {[%clk 0:04:55.5]}
2... Bf5 {[%clk 0:04:55.6]} 3. Nf3 {[%clk 0:04:55.4]} 3... e6 {[%clk 0:04:54.2]}
4. Bf4 {[%clk 0:04:54]} 4... c6 {[%clk 0:04:52.8]} 5. Nbd2 {[%clk 0:04:52.3]}
5... Nf6 {[%clk 0:04:51.1]} 6. e3 {[%clk 0:04:51.6]} 6... Bd6 {[%clk 0:04:49.8]}
7. Bg3 {[%clk 0:04:50.9]} 7... O-O {[%clk 0:04:48.2]} 8. Be2 {[%clk 0:04:49.2]}
8... Qc7 {[%clk 0:04:43.9]} 9. b4 {[%clk 0:04:31.3]} 9... Nbd7 {[%clk
0:04:37.3]} 10. Qb3 {[%clk 0:04:29.2]} 10... b5 {[%clk 0:04:29.6]} 11. O-O
{[%clk 0:04:25.7]} 11... a5 {[%clk 0:04:28.2]} 12. a3 {[%clk 0:04:23.9]} 12...
Ra7 {[%clk 0:04:19]} 13. a4 {[%clk 0:04:16.5]} 13... bxa4 {[%clk 0:04:13]} 14.
Rxa4 {[%clk 0:04:13.9]} 14... Rfa8 {[%clk 0:04:10.1]} 15. Rfa1 {[%clk
0:04:11.2]} 15... Bxg3 {[%clk 0:04:08.7]} 16. hxg3 {[%clk 0:04:09.8]} 16... Be4
{[%clk 0:03:44.7]} 17. Qa2 {[%clk 0:03:52.5]} 17... Bxf3 {[%clk 0:03:33.3]} 18.
gxf3 {[%clk 0:03:45.4]} 18... e5 {[%clk 0:03:22.8]} 19. Rxa5 {[%clk 0:03:37]}
19... Rxa5 {[%clk 0:03:20.8]} 20. bxa5 {[%clk 0:03:36.9]} 20... c5 {[%clk
0:03:10.7]} 21. dxe5 {[%clk 0:03:22.6]} 21... Nxe5 {[%clk 0:03:07.8]} 22. f4
{[%clk 0:03:21.7]} 22... Neg4 {[%clk 0:03:02.9]} 23. Bxg4 {[%clk 0:02:59.9]}
23... Nxg4 {[%clk 0:03:01.4]} 24. Qxd5 {[%clk 0:02:56.7]} 1-0

[Event "Live Chess"]
[Site "Chess.com"]
[Date "2023.05.21"]
[Round "-"]
[White "KeithArkell"]
[Black "Hacker_2009"]
[Result "1-0"]
[WhiteElo "2556"]
[BlackElo "1935"]
[TimeControl "300"]
[EndTime "22:11:21 PDT"]
[Termination "KeithArkell won by checkmate"]

1. d4 {[%clk 0:04:48.6]} 1... Nf6 {[%clk 0:04:57.4]} 2. Nf3 {[%clk 0:04:47.7]}
2... e6 {[%clk 0:04:56.3]} 3. c4 {[%clk 0:04:47]} 3... d5 {[%clk 0:04:55.7]} 4.
cxd5 {[%clk 0:04:45.7]} 4... Nxd5 {[%clk 0:04:54.2]} 5. Nc3 {[%clk 0:04:45]}
5... b6 {[%clk 0:04:52.5]} 6. Nxd5 {[%clk 0:04:43]} 6... Qxd5 {[%clk 0:04:52]}
7. g3 {[%clk 0:04:41]} 7... Bb7 {[%clk 0:04:51.6]} 8. Bg2 {[%clk 0:04:40]} 8...
c5 {[%clk 0:04:48.8]} 9. Nh4 {[%clk 0:04:38.8]} 9... Qd7 {[%clk 0:04:46.9]} 10.
dxc5 {[%clk 0:04:27.6]} 10... Qxd1+ {[%clk 0:04:42.4]} 11. Kxd1 {[%clk
0:04:27.5]} 11... Bxg2 {[%clk 0:04:41.7]} 12. Nxg2 {[%clk 0:04:26.8]} 12... Bxc5
{[%clk 0:04:40.4]} 13. Be3 {[%clk 0:04:25.9]} 13... Bxe3 {[%clk 0:04:35.3]} 14.
Nxe3 {[%clk 0:04:24.7]} 14... O-O {[%clk 0:04:33.9]} 15. Rc1 {[%clk 0:04:21.3]}
15... Nd7 {[%clk 0:04:30.9]} 16. f3 {[%clk 0:04:17.1]} 16... Nc5 {[%clk
0:04:29.7]} 17. Ke1 {[%clk 0:04:16.1]} 17... Rac8 {[%clk 0:04:27.3]} 18. Kf2
{[%clk 0:04:14.6]} 18... Rfd8 {[%clk 0:04:24.6]} 19. Rhd1 {[%clk 0:04:06.4]}
19... Kf8 {[%clk 0:04:21.9]} 20. Rxd8+ {[%clk 0:04:01.5]} 20... Rxd8 {[%clk
0:04:20.6]} 21. b4 {[%clk 0:04:00]} 21... Na6 {[%clk 0:04:19.2]} 22. a3 {[%clk
0:03:58.6]} 22... Rd7 {[%clk 0:04:14.5]} 23. Rc8+ {[%clk 0:03:51.8]} 23... Ke7
{[%clk 0:04:10.8]} 24. g4 {[%clk 0:03:19.5]} 24... Nc7 {[%clk 0:04:05.8]} 25. g5
{[%clk 0:03:10.3]} 25... f6 {[%clk 0:03:36.8]} 26. Rh8 {[%clk 0:03:06.4]} 26...
fxg5 {[%clk 0:03:32]} 27. Rxh7 {[%clk 0:03:05.6]} 27... Kf6 {[%clk 0:03:31.4]}
28. Ng4+ {[%clk 0:03:03.8]} 28... Kg6 {[%clk 0:03:29.3]} 29. Rh8 {[%clk
0:03:03]} 29... Rd1 {[%clk 0:03:25.8]} 30. Rf8 {[%clk 0:02:53.7]} 30... Ra1
{[%clk 0:03:17.6]} 31. Ne5+ {[%clk 0:02:52.8]} 31... Kh7 {[%clk 0:03:14.5]} 32.
Rf7 {[%clk 0:02:51.7]} 32... Nb5 {[%clk 0:03:12.7]} 33. Kg3 {[%clk 0:02:22.8]}
33... Rxa3 {[%clk 0:03:06.1]} 34. Kg4 {[%clk 0:02:21.9]} 34... Re3 {[%clk
0:03:05.5]} 35. Nc6 {[%clk 0:02:11.7]} 35... Kg6 {[%clk 0:03:00.7]} 36. Re7
{[%clk 0:01:59.4]} 36... Rxe2 {[%clk 0:02:57.4]} 37. Nd8 {[%clk 0:01:22.7]}
37... Kf6 {[%clk 0:02:44.7]} 38. Rf7+ {[%clk 0:01:21]} 38... Kg6 {[%clk
0:02:43.7]} 39. Re7 {[%clk 0:01:18.2]} 39... e5 {[%clk 0:02:38.7]} 40. Re6+
{[%clk 0:01:15]} 40... Kh7 {[%clk 0:02:36]} 41. Nf7 {[%clk 0:01:12.5]} 41... Nd4
{[%clk 0:02:20.8]} 42. Nxg5+ {[%clk 0:01:10.5]} 42... Kg8 {[%clk 0:02:18.2]} 43.
Re8# {[%clk 0:01:09.7]} 1-0

[Event "Live Chess"]
[Site "Chess.com"]
[Date "2023.05.21"]
[Round "-"]
[White "chessfiction"]
[Black "1PRK1"]
[Result "1-0"]
[WhiteElo "2353"]
[BlackElo "1364"]
[TimeControl "300"]
[EndTime "22:12:35 PDT"]
[Termination "chessfiction won by resignation"]

1. e4 {[%clk 0:04:58.5]} 1... c5 {[%clk 0:04:58.8]} 2. Nf3 {[%clk 0:04:57.1]}
2... d6 {[%clk 0:04:57.3]} 3. d4 {[%clk 0:04:57]} 3... cxd4 {[%clk 0:04:56]} 4.
Nxd4 {[%clk 0:04:56.9]} 4... Nf6 {[%clk 0:04:54.6]} 5. Nc3 {[%clk 0:04:56.4]}
5... a6 {[%clk 0:04:54]} 6. f4 {[%clk 0:04:55.7]} 6... e6 {[%clk 0:04:51.4]} 7.
Bd3 {[%clk 0:04:54.1]} 7... Be7 {[%clk 0:04:50.5]} 8. O-O {[%clk 0:04:52.8]}
8... O-O {[%clk 0:04:50.1]} 9. Kh1 {[%clk 0:04:51.9]} 9... Qb6 {[%clk 0:04:45]}
10. Be3 {[%clk 0:04:50.6]} 10... Qxb2 {[%clk 0:04:42.6]} 11. Qd2 {[%clk
0:04:48.9]} 11... Qa3 {[%clk 0:04:37.4]} 12. Rab1 {[%clk 0:04:44.3]} 12... Qa5
{[%clk 0:04:23.6]} 13. Nd5 {[%clk 0:04:38.8]} 13... Qxd2 {[%clk 0:04:18.8]} 14.
Nxe7+ {[%clk 0:04:37.9]} 14... Kh8 {[%clk 0:04:16.9]} 15. Bxd2 {[%clk
0:04:37.8]} 15... b5 {[%clk 0:04:08.7]} 16. e5 {[%clk 0:04:35.6]} 16... Nd5
{[%clk 0:04:04.3]} 17. exd6 {[%clk 0:04:30.1]} 17... Nxe7 {[%clk 0:04:01.3]} 18.
dxe7 {[%clk 0:04:30]} 18... Re8 {[%clk 0:03:59.3]} 19. Bb4 {[%clk 0:04:26.7]}
19... a5 {[%clk 0:03:51.8]} 20. Bd6 {[%clk 0:04:25.7]} 20... b4 {[%clk
0:03:42.8]} 21. Be4 {[%clk 0:04:20.3]} 21... Ra6 {[%clk 0:03:40.9]} 22. Bxb8
{[%clk 0:04:19.1]} 1-0

[Event "Live Chess"]
[Site "Chess.com"]
[Date "2023.05.21"]
[Round "-"]
[White "smoggyrabbit"]
[Black "RockTroll"]
[Result "0-1"]
[WhiteElo "1738"]
[BlackElo "2230"]
[TimeControl "300"]
[EndTime "22:12:45 PDT"]
[Termination "RockTroll won by resignation"]

1. d4 {[%clk 0:04:58]} 1... d5 {[%clk 0:04:57.9]} 2. Nf3 {[%clk 0:04:56.5]} 2...
Nf6 {[%clk 0:04:56.4]} 3. e3 {[%clk 0:04:55.1]} 3... c5 {[%clk 0:04:53.4]} 4. b3
{[%clk 0:04:50.5]} 4... Nc6 {[%clk 0:04:52]} 5. Bb2 {[%clk 0:04:46.1]} 5... cxd4
{[%clk 0:04:50.5]} 6. exd4 {[%clk 0:04:45]} 6... g6 {[%clk 0:04:44.9]} 7. Be2
{[%clk 0:04:43.6]} 7... Bg7 {[%clk 0:04:44.5]} 8. O-O {[%clk 0:04:42.3]} 8...
O-O {[%clk 0:04:44.2]} 9. c4 {[%clk 0:04:37.7]} 9... Bf5 {[%clk 0:04:38.5]} 10.
Nc3 {[%clk 0:04:29.6]} 10... dxc4 {[%clk 0:04:20]} 11. bxc4 {[%clk 0:04:24.4]}
11... Qb6 {[%clk 0:04:19.3]} 12. Ba3 {[%clk 0:04:18.4]} 12... Rfd8 {[%clk
0:04:13.5]} 13. d5 {[%clk 0:04:15]} 13... Ne4 {[%clk 0:04:01.4]} 14. Nxe4 {[%clk
0:03:38.5]} 14... Bxa1 {[%clk 0:03:57.1]} 15. Qxa1 {[%clk 0:03:37.4]} 15... Bxe4
{[%clk 0:03:48.5]} 16. dxc6 {[%clk 0:03:35.8]} 16... Bxc6 {[%clk 0:03:44.6]} 17.
Bxe7 {[%clk 0:03:30.7]} 17... Re8 {[%clk 0:03:41.4]} 18. Qf6 {[%clk 0:03:24]}
18... Qc7 {[%clk 0:03:34.4]} 19. Bd6 {[%clk 0:03:11]} 19... Qd8 {[%clk
0:03:33.6]} 20. Qxd8 {[%clk 0:03:00.7]} 20... Raxd8 {[%clk 0:03:32.6]} 21. Be5
{[%clk 0:02:47]} 21... Bxf3 {[%clk 0:03:22.6]} 22. Bxf3 {[%clk 0:02:41.6]} 22...
Rxe5 {[%clk 0:03:13.6]} 23. Bxb7 {[%clk 0:02:40]} 23... Ra5 {[%clk 0:03:06.2]}
24. Rc1 {[%clk 0:02:30.7]} 24... Rxa2 {[%clk 0:03:04.1]} 25. c5 {[%clk
0:02:29.8]} 25... Rc2 {[%clk 0:03:03.1]} 26. Re1 {[%clk 0:02:17.5]} 26... Rxc5
{[%clk 0:03:01.1]} 27. h3 {[%clk 0:02:16.5]} 27... a5 {[%clk 0:02:57.7]} 28. Re7
{[%clk 0:02:06.1]} 28... a4 {[%clk 0:02:55.4]} 29. Bf3 {[%clk 0:02:01.9]} 29...
Ra5 {[%clk 0:02:54.3]} 30. Re1 {[%clk 0:01:30.4]} 30... a3 {[%clk 0:02:46.5]}
31. Ra1 {[%clk 0:01:25.5]} 31... Rb8 {[%clk 0:02:43.2]} 32. Be2 {[%clk
0:01:17.9]} 32... a2 {[%clk 0:02:42.7]} 33. Bd3 {[%clk 0:01:14.5]} 33... Rb2
{[%clk 0:02:39.1]} 34. Kf1 {[%clk 0:01:05.3]} 34... Rd5 {[%clk 0:02:35.9]} 35.
Be4 {[%clk 0:01:00.5]} 35... Rdd2 {[%clk 0:02:35.1]} 36. f4 {[%clk 0:00:49.2]}
36... Rf2+ {[%clk 0:02:30.7]} 37. Ke1 {[%clk 0:00:47.7]} 37... Rbe2+ {[%clk
0:02:28.6]} 38. Kd1 {[%clk 0:00:44.5]} 38... Rxe4 {[%clk 0:02:27.8]} 0-1

[Event "Live Chess"]
[Site "Chess.com"]
[Date "2023.05.21"]
[Round "-"]
[White "Shepherds_Pie"]
[Black "Long1968"]
[Result "1-0"]
[WhiteElo "1920"]
[BlackElo "1055"]
[TimeControl "300"]
[EndTime "22:13:33 PDT"]
[Termination "Shepherds_Pie won on time"]

1. c4 {[%clk 0:04:56.9]} 1... e5 {[%clk 0:04:56.9]} 2. Nc3 {[%clk 0:04:55.6]}
2... c6 {[%clk 0:04:54]} 3. Nf3 {[%clk 0:04:54.5]} 3... Qc7 {[%clk 0:04:46.9]}
4. d4 {[%clk 0:04:52.8]} 4... exd4 {[%clk 0:04:38.1]} 5. Qxd4 {[%clk 0:04:50.9]}
5... Nf6 {[%clk 0:04:33.4]} 6. Bf4 {[%clk 0:04:49.2]} 6... d6 {[%clk 0:04:16.9]}
7. Rd1 {[%clk 0:04:46.9]} 7... Kd7 {[%clk 0:03:58.4]} 8. g3 {[%clk 0:04:35.1]}
8... c5 {[%clk 0:03:42.9]} 9. Qd3 {[%clk 0:04:26.7]} 9... Nc6 {[%clk 0:02:43.4]}
10. Bh3+ {[%clk 0:04:20.5]} 10... Ke8 {[%clk 0:02:30.4]} 11. Bxc8 {[%clk
0:04:12.8]} 11... Rxc8 {[%clk 0:02:25.5]} 12. Nb5 {[%clk 0:04:10.4]} 12... Qd7
{[%clk 0:02:16.3]} 13. Bxd6 {[%clk 0:04:03.2]} 13... Be7 {[%clk 0:02:00.7]} 14.
Bxe7 {[%clk 0:03:57]} 14... Qxd3 {[%clk 0:01:54.2]} 15. Rxd3 {[%clk 0:03:55]}
15... Kxe7 {[%clk 0:01:50.3]} 16. O-O {[%clk 0:03:51]} 16... Rhd8 {[%clk
0:01:41.6]} 17. Rfd1 {[%clk 0:03:49.1]} 17... Rxd3 {[%clk 0:01:24.9]} 18. Rxd3
{[%clk 0:03:47.2]} 18... Rd8 {[%clk 0:01:19.2]} 19. Rxd8 {[%clk 0:03:44.6]}
19... Kxd8 {[%clk 0:01:02.2]} 20. Nd6 {[%clk 0:03:42.8]} 20... b6 {[%clk
0:00:44.9]} 21. Nxf7+ {[%clk 0:03:40.6]} 21... Ke7 {[%clk 0:00:29.6]} 22. N7g5
{[%clk 0:03:38.9]} 22... h6 {[%clk 0:00:23.5]} 23. Nh3 {[%clk 0:03:37.4]} 23...
g5 {[%clk 0:00:17.7]} 24. Nd2 {[%clk 0:03:32]} 24... Nb4 {[%clk 0:00:12.4]} 25.
a3 {[%clk 0:03:30.2]} 25... Nc2 {[%clk 0:00:09.5]} 26. Kf1 {[%clk 0:03:28.7]}
26... Nd4 {[%clk 0:00:05.8]} 27. e3 {[%clk 0:03:26.2]} 27... Ne6 {[%clk
0:00:00.4]} 28. Ng1 {[%clk 0:03:24.7]} 1-0

[Event "Live Chess"]
[Site "Chess.com"]
[Date "2023.05.21"]
[Round "-"]
[White "Nazar_777"]
[Black "ExIsambard"]
[Result "0-1"]
[WhiteElo "1622"]
[BlackElo "1921"]
[TimeControl "300"]
[EndTime "22:14:15 PDT"]
[Termination "ExIsambard won by checkmate"]

1. e3 {[%clk 0:04:59.1]} 1... d5 {[%clk 0:04:58.3]} 2. h4 {[%clk 0:04:58.2]}
2... c5 {[%clk 0:04:57.5]} 3. a3 {[%clk 0:04:57.5]} 3... Nc6 {[%clk 0:04:56.2]}
4. c4 {[%clk 0:04:56.4]} 4... d4 {[%clk 0:04:53.1]} 5. Nf3 {[%clk 0:04:46.4]}
5... e5 {[%clk 0:04:46.7]} 6. b3 {[%clk 0:04:44.9]} 6... Nf6 {[%clk 0:04:45.1]}
7. Bd3 {[%clk 0:04:43.2]} 7... e4 {[%clk 0:04:43.1]} 8. Bf1 {[%clk 0:04:40.2]}
8... exf3 {[%clk 0:04:41.2]} 9. gxf3 {[%clk 0:04:39.2]} 9... dxe3 {[%clk
0:04:37.6]} 10. dxe3 {[%clk 0:04:34]} 10... Qxd1+ {[%clk 0:04:36.2]} 11. Kxd1
{[%clk 0:04:33]} 11... Ne5 {[%clk 0:04:35.4]} 12. Ke2 {[%clk 0:04:32.2]} 12...
Be6 {[%clk 0:04:34.1]} 13. Nc3 {[%clk 0:04:30.5]} 13... O-O-O {[%clk 0:04:32.7]}
14. Bd2 {[%clk 0:04:28.8]} 14... Bf5 {[%clk 0:04:14.7]} 15. Rd1 {[%clk
0:04:26.6]} 15... Bd3+ {[%clk 0:04:11.8]} 16. Ke1 {[%clk 0:04:23.7]} 16... Nxf3#
{[%clk 0:04:11.1]} 0-1

[Event "Live Chess"]
[Site "Chess.com"]
[Date "2023.05.21"]
[Round "-"]
[White "Hacker_2009"]
[Black "Tushinskiy"]
[Result "0-1"]
[WhiteElo "1932"]
[BlackElo "2217"]
[TimeControl "300"]
[EndTime "22:14:18 PDT"]
[Termination "Tushinskiy won by resignation"]

1. d4 {[%clk 0:04:57.2]} 1... d5 {[%clk 0:04:58.6]} 2. Nf3 {[%clk 0:04:54.3]}
2... c6 {[%clk 0:04:58.5]} 3. e3 {[%clk 0:04:53.2]} 3... Nf6 {[%clk 0:04:56.9]}
4. c4 {[%clk 0:04:52.7]} 4... e6 {[%clk 0:04:49.8]} 5. cxd5 {[%clk 0:04:51.4]}
5... exd5 {[%clk 0:04:49.7]} 6. Nc3 {[%clk 0:04:46.9]} 6... Bd6 {[%clk
0:04:47.9]} 7. Be2 {[%clk 0:04:45.1]} 7... O-O {[%clk 0:04:45]} 8. O-O {[%clk
0:04:44.7]} 8... Be6 {[%clk 0:04:35.3]} 9. b3 {[%clk 0:04:42.3]} 9... Nbd7
{[%clk 0:04:20.5]} 10. Bb2 {[%clk 0:04:40.9]} 10... Qe7 {[%clk 0:04:18.7]} 11.
Rc1 {[%clk 0:04:39.7]} 11... Rae8 {[%clk 0:04:16.9]} 12. Qc2 {[%clk 0:04:37.8]}
12... Bg4 {[%clk 0:04:04.5]} 13. Na4 {[%clk 0:04:36.5]} 13... Bh5 {[%clk
0:04:00.3]} 14. Nc5 {[%clk 0:04:34.6]} 14... Nxc5 {[%clk 0:03:59.3]} 15. dxc5
{[%clk 0:04:32.9]} 15... Bb8 {[%clk 0:03:58.4]} 16. Nd4 {[%clk 0:04:31.8]} 16...
Bg6 {[%clk 0:03:55.3]} 17. Bd3 {[%clk 0:04:30.1]} 17... Ng4 {[%clk 0:03:18.5]}
18. h3 {[%clk 0:04:22.4]} 18... Nxe3 {[%clk 0:03:12.7]} 19. fxe3 {[%clk
0:04:16.2]} 19... Qxe3+ {[%clk 0:03:12.6]} 20. Kh1 {[%clk 0:04:14.9]} 20... Bxd3
{[%clk 0:03:09.3]} 0-1

[Event "Live Chess"]
[Site "Chess.com"]
[Date "2023.05.21"]
[Round "-"]
[White "Conradical12"]
[Black "YrrriKharkiv"]
[Result "1/2-1/2"]
[WhiteElo "1630"]
[BlackElo "2046"]
[TimeControl "300"]
[EndTime "22:14:45 PDT"]
[Termination "Game drawn by stalemate"]

1. e4 {[%clk 0:04:56.8]} 1... e6 {[%clk 0:04:56.5]} 2. d4 {[%clk 0:04:54.8]}
2... d5 {[%clk 0:04:55.7]} 3. exd5 {[%clk 0:04:51.8]} 3... exd5 {[%clk
0:04:54.5]} 4. Nf3 {[%clk 0:04:51.3]} 4... Bd6 {[%clk 0:04:53.5]} 5. Bd3 {[%clk
0:04:50.5]} 5... Ne7 {[%clk 0:04:52.7]} 6. c3 {[%clk 0:04:48]} 6... Nd7 {[%clk
0:04:51.6]} 7. Qc2 {[%clk 0:04:47.4]} 7... c5 {[%clk 0:04:47.9]} 8. Be3 {[%clk
0:04:47.3]} 8... Nc6 {[%clk 0:04:39.6]} 9. Nbd2 {[%clk 0:04:42.2]} 9... Nf6
{[%clk 0:04:37.5]} 10. O-O-O {[%clk 0:04:40.1]} 10... cxd4 {[%clk 0:04:35.5]}
11. Nxd4 {[%clk 0:04:37.8]} 11... O-O {[%clk 0:04:27.9]} 12. h4 {[%clk
0:04:27.1]} 12... Re8 {[%clk 0:04:18.4]} 13. h5 {[%clk 0:04:23.9]} 13... h6
{[%clk 0:04:17.2]} 14. Nxc6 {[%clk 0:04:13.5]} 14... bxc6 {[%clk 0:04:14.8]} 15.
Nf3 {[%clk 0:04:12.2]} 15... Ng4 {[%clk 0:04:05.8]} 16. Rde1 {[%clk 0:04:01.8]}
16... c5 {[%clk 0:03:52.8]} 17. Bh7+ {[%clk 0:03:46.2]} 17... Kh8 {[%clk
0:03:44.7]} 18. Bf5 {[%clk 0:03:45]} 18... d4 {[%clk 0:03:31.2]} 19. cxd4 {[%clk
0:03:42.4]} 19... cxd4 {[%clk 0:03:29.6]} 20. Bxd4 {[%clk 0:03:40.8]} 20...
Rxe1+ {[%clk 0:03:21.4]} 21. Rxe1 {[%clk 0:03:38.1]} 21... Bxf5 {[%clk
0:02:35.1]} 22. Qxf5 {[%clk 0:03:34.6]} 22... Qc8+ {[%clk 0:02:27.8]} 23. Qxc8+
{[%clk 0:03:30.8]} 23... Rxc8+ {[%clk 0:02:27.5]} 24. Kb1 {[%clk 0:03:28.6]}
24... a5 {[%clk 0:02:23.7]} 25. Bb6 {[%clk 0:03:21.8]} 25... a4 {[%clk
0:02:22.1]} 26. Nd4 {[%clk 0:03:18.8]} 26... Nxf2 {[%clk 0:02:11.7]} 27. Nf5
{[%clk 0:03:09.6]} 27... Bb4 {[%clk 0:02:06]} 28. Bxf2 {[%clk 0:02:58.4]} 28...
Bxe1 {[%clk 0:02:04.7]} 29. Bxe1 {[%clk 0:02:57.8]} 29... Rc5 {[%clk 0:02:01.3]}
30. g4 {[%clk 0:02:42.8]} 30... Rc4 {[%clk 0:01:56.9]} 31. Bc3 {[%clk
0:02:36.2]} 31... Rxg4 {[%clk 0:01:49.7]} 32. Bxg7+ {[%clk 0:02:32.5]} 32...
Rxg7 {[%clk 0:01:48.3]} 33. Nxg7 {[%clk 0:02:30.2]} 33... Kxg7 {[%clk
0:01:47.8]} 34. b4 {[%clk 0:02:27.8]} 34... axb3 {[%clk 0:01:43.9]} 35. axb3
{[%clk 0:02:26.4]} 35... Kf6 {[%clk 0:01:42]} 36. b4 {[%clk 0:02:25.2]} 36...
Ke5 {[%clk 0:01:41.3]} 37. Kc2 {[%clk 0:02:23.5]} 37... f5 {[%clk 0:01:38.9]}
38. Kd2 {[%clk 0:02:21.9]} 38... Kd4 {[%clk 0:01:36]} 39. b5 {[%clk 0:02:19.9]}
39... Kc5 {[%clk 0:01:35.1]} 40. Ke3 {[%clk 0:02:18.7]} 40... Kxb5 {[%clk
0:01:34.8]} 41. Kf4 {[%clk 0:02:18.2]} 41... Kc6 {[%clk 0:01:34.5]} 42. Kxf5
{[%clk 0:02:17.5]} 42... Kd7 {[%clk 0:01:34.3]} 43. Kg6 {[%clk 0:02:17]} 43...
Ke8 {[%clk 0:01:34]} 44. Kxh6 {[%clk 0:02:16.2]} 44... Kf8 {[%clk 0:01:33.7]}
45. Kh7 {[%clk 0:02:13.9]} 45... Kf7 {[%clk 0:01:33]} 46. h6 {[%clk 0:02:11.9]}
46... Kf8 {[%clk 0:01:32.1]} 47. Kh8 {[%clk 0:02:10.1]} 47... Kf7 {[%clk
0:01:31.2]} 48. h7 {[%clk 0:02:08]} 48... Kf8 {[%clk 0:01:30.4]} 1/2-1/2